bitfinex-derivatives/quotes_SOLF0:USTF0_20230901
["timestamp","ask_amount","ask_price","bid_price","bid_amount"]
[1693580704079,81.0484492,19.293,19.283,93.03517091]
[1693580704277,92.91,19.307,19.288,418.9515508]
[1693580704478,81.0484492,19.303,19.288,418.9515508]
[1693580704671,81.0484492,19.313,19.298,418.9515508]
[1693580705074,81.0484492,19.313,19.299,92.91]
[1693580705472,92.91,19.322,19.303,92.91]
[1693580705773,81.0484492,19.323,19.306,92.91]
[1693580705975,92.91,19.322,19.302,92.91]
[1693580706178,81.0484492,19.313,19.299,20.4698]
[1693580706678,81.0484492,19.313,19.299,113.3798]
[1693580706870,81.0484492,19.323,19.305,92.91]
[1693580707074,92.91,19.318,19.299,20.4698]
[1693580707276,92.91,19.321,19.301,92.91]
[1693580707477,81.0484492,19.323,19.305,92.91]
[1693580707674,81.0484492,19.323,19.317,92.91]
[1693580708178,81.0484492,19.318,19.305,92.91]
[1693580708373,81.0484492,19.318,19.297,418.9515508]
[1693580708579,81.0484492,19.318,19.31,92.91]
[1693580708780,81.0484492,19.313,19.31,92.91]
[1693580709180,81.0484492,19.323,19.31,92.91]
[1693580709375,81.0484492,19.313,19.297,418.9515508]
[1693580709579,81.0484492,19.313,19.312,92.91]
[1693580709976,81.0484492,19.313,19.312,59.7527]
[1693580710179,81.0484492,19.313,19.297,418.9515508]
[1693580710180,81.0484492,19.313,19.304,92.91]
[1693580710379,81.0484492,19.313,19.302,92.91]
[1693580710577,81.0484492,19.313,19.279,38.97832326]
[1693580710578,81.0484492,19.303,19.299,92.91]
[1693580710784,81.0484492,19.313,19.299,92.91]
[1693580710985,81.0484492,19.323,19.31,92.91]
[1693580711180,81.0484492,19.313,19.31,92.91]
[1693580711488,81.0484492,19.313,19.312,92.91]
[1693580711882,81.0484492,19.323,19.312,92.91]
[1693580712587,81.0484492,19.323,19.318,92.91]
[1693580713188,81.0484492,19.323,19.316,92.91]
[1693580713387,81.0484492,19.323,19.319,92.91]
[1693580714282,81.0484492,19.323,19.322,92.91]
[1693580714484,81.0484492,19.333,19.322,92.91]
[1693580714988,81.0484492,19.333,19.33,92.91]
[1693580716486,81.0484492,19.343,19.33,92.91]
[1693580716688,81.0484492,19.333,19.317,418.9515508]
[1693580716885,81.0484492,19.333,19.332,92.91]
[1693580717385,214.90650413,19.35,19.332,92.91]
[1693580717386,81.0484492,19.343,19.332,92.91]
[1693580717790,81.0484492,19.333,19.332,92.91]
[1693580717988,81.0484492,19.343,19.332,92.91]
[1693580718190,81.0484492,19.343,19.339,92.91]
[1693580719092,81.0484492,19.343,19.342,92.91]
[1693580719889,0.22727272,19.351,19.342,92.91]
[1693580720091,9.50336624,19.359,19.35,92.91]
[1693580720303,81.0484492,19.353,19.35,92.91]
[1693580720492,9.50336624,19.361,19.35,92.91]
[1693580720687,81.0484492,19.353,19.35,92.91]
[1693580722398,81.0484492,19.353,19.348,92.91]
[1693580722793,81.0484492,19.363,19.351,92.91]
[1693580722996,81.0484492,19.353,19.351,92.91]
[1693580723693,81.0484492,19.363,19.351,92.91]
[1693580723894,81.0484492,19.353,19.351,92.91]
[1693580724095,81.0484492,19.353,19.352,92.91]
[1693580724996,81.0484492,19.363,19.352,92.91]
[1693580725198,81.0484492,19.363,19.356,92.91]
[1693580725598,81.0484492,19.363,19.359,92.91]
[1693580727196,81.0484492,19.362,19.359,93.64352127]
[1693580727499,0.78867519,19.363,19.359,93.64352127]
[1693580727698,40.54958676,19.379,19.362,92.91]
[1693580727897,9.49721877,19.376,19.365,92.91]
[1693580728198,509.49721877,19.376,19.365,92.91]
[1693580728401,9.49721877,19.375,19.359,93.64352127]
[1693580728705,9.49721877,19.375,19.359,92.91]
[1693580729005,9.49721877,19.375,19.362,92.91]
[1693580729400,9.49721877,19.374,19.362,92.91]
[1693580729593,9.49721877,19.373,19.362,92.91]
[1693580729903,500.0,19.376,19.362,92.91]
[1693580729904,9.4961105,19.372,19.362,92.91]
[1693580730107,500.0,19.376,19.362,92.91]
[1693580730405,9.49617031,19.375,19.362,92.91]
[1693580730799,9.49617031,19.378,19.365,92.91]
[1693580731004,92.91,19.385,19.365,92.91]
[1693580731204,9.49333662,19.384,19.365,92.91]
[1693580731506,92.91,19.383,19.365,92.91]
[1693580731706,9.49333662,19.382,19.369,92.91]
[1693580731899,9.49333662,19.381,19.369,92.91]
[1693580732104,9.49333662,19.385,19.369,92.91]
[1693580732506,9.49333662,19.385,19.372,92.91]
[1693580732806,500.0,19.387,19.372,92.91]
[1693580732807,9.49333662,19.384,19.372,92.91]
[1693580733007,9.49333662,19.386,19.372,92.91]
[1693580733306,9.49333662,19.386,19.359,371.64]
[1693580733307,9.49333662,19.385,19.378,92.91]
[1693580733606,592.91,19.397,19.378,92.91]
[1693580733805,9.48990423,19.396,19.378,92.91]
[1693580733999,9.48990423,19.396,19.376,92.91]
[1693580734402,9.48990423,19.396,19.379,92.91]
[1693580735400,25.77984,19.395,19.379,92.91]
[1693580735601,9.48990423,19.394,19.379,92.91]
[1693580735999,9.48990423,19.396,19.379,92.91]
[1693580736199,9.48990423,19.395,19.382,92.91]
[1693580736397,9.48990423,19.394,19.379,92.91]
[1693580736604,92.91,19.391,19.373,92.91]
[1693580736905,92.91,19.384,19.366,92.91]
[1693580737107,9.48990423,19.383,19.366,92.91]
[1693580738110,92.91,19.381,19.363,0.06232803]
[1693580738308,9.48990423,19.38,19.363,0.06232803]
[1693580738701,92.91,19.381,19.363,0.06232803]
[1693580738908,92.91,19.384,19.365,92.91]
[1693580739109,9.49241292,19.383,19.365,92.91]
[1693580739504,9.49241292,19.383,19.368,92.91]
[1693580739705,114.8776,19.39,19.372,92.91]
[1693580740006,9.49098387,19.389,19.372,92.91]
[1693580740400,92.91,19.387,19.369,92.91]
[1693580740709,9.49098387,19.386,19.369,92.91]
[1693580740910,0.74190551,19.383,19.369,92.91]
[1693580741101,0.74190551,19.383,19.379,0.83963473]
[1693580741702,15.48,19.382,19.379,0.83963473]
[1693580741906,15.48,19.382,19.366,92.91]
[1693580742105,15.48,19.38,19.366,92.91]
[1693580742306,15.48,19.384,19.366,92.91]
[1693580742507,15.48,19.38,19.364,21.5709]
[1693580742812,15.48,19.38,19.363,0.06232803]
[1693580743413,15.48,19.378,19.363,0.06232803]
[1693580743611,15.48,19.38,19.363,0.06232803]
[1693580744013,15.48,19.38,19.365,92.91]
[1693580744414,15.48,19.38,19.366,20.2464]
[1693580745211,15.48,19.38,19.367,92.91]
[1693580745413,15.48,19.385,19.367,92.91]
[1693580745615,9.4924068,19.384,19.368,20.2464]
[1693580747113,9.4924068,19.384,19.365,92.91]
[1693580747313,9.4924068,19.384,19.366,21.8356]
[1693580748410,9.4924068,19.384,19.368,92.91]
[1693580749315,9.4924068,19.384,19.366,114.7456]
[1693580749913,9.4924068,19.384,19.379,0.06227656]
[1693580752220,9.4924068,19.384,19.375,0.12457805]
[1693580752221,92.91,19.382,19.375,0.12457805]
[1693580752416,15.48,19.38,19.375,0.12457805]
[1693580752617,92.91,19.382,19.375,0.12457805]
[1693580752818,15.48,19.38,19.375,0.12457805]
[1693580753015,92.91,19.382,19.375,0.12457805]
[1693580753221,15.48,19.38,19.375,0.12457805]
[1693580753415,92.91,19.385,19.375,0.12457805]
[1693580753621,9.49235751,19.384,19.375,0.12457805]
[1693580755918,92.91,19.388,19.375,0.12457805]
[1693580755919,15.48,19.385,19.375,0.12457805]
[1693580756117,15.48,19.387,19.375,0.12457805]
[1693580756418,92.91,19.384,19.375,0.12457805]
[1693580756614,15.48,19.38,19.375,0.12457805]
[1693580758124,92.91,19.384,19.375,0.12457805]
[1693580758322,15.48,19.382,19.375,0.12457805]
[1693580758623,92.91,19.384,19.375,0.12457805]
[1693580758825,15.48,19.382,19.375,0.12457805]
[1693580759024,92.91,19.384,19.375,0.12457805]
[1693580759325,15.48,19.382,19.375,0.12457805]
[1693580759516,92.91,19.384,19.375,0.12457805]
[1693580759721,9.49122293,19.383,19.375,0.12457805]
[1693580759921,15.48,19.382,19.375,0.12457805]
[1693580760123,92.91,19.384,19.375,0.12457805]
[1693580760420,500.0,19.378,19.371,0.18690446]
[1693580760622,92.91,19.375,19.367,0.24925582]
[1693580761424,15.48,19.373,19.367,0.24925582]
[1693580761729,92.91,19.375,19.367,0.24925582]
[1693580762414,15.48,19.373,19.367,0.24925582]
[1693580762622,92.91,19.375,19.367,0.24925582]
[1693580762820,15.48,19.373,19.367,0.24925582]
[1693580763023,0.76538365,19.373,19.36,20.156]
[1693580764325,92.91,19.375,19.36,20.156]
[1693580764523,15.48,19.373,19.36,20.156]
[1693580764721,92.91,19.375,19.36,20.156]
[1693580764925,15.48,19.373,19.36,20.156]
[1693580765119,92.91,19.375,19.365,0.84558333]
[1693580765120,0.79000135,19.368,19.365,0.84558333]
[1693580766222,608.39,19.378,19.365,0.84558333]
[1693580766527,9.49481433,19.377,19.365,0.84558333]
[1693580767123,9.49476293,19.376,19.365,0.84558333]
[1693580767428,9.49476293,19.376,19.36,113.066]
[1693580767429,15.48,19.38,19.375,0.124578]
[1693580770128,114.9049,19.381,19.375,0.124578]
[1693580770425,21.9949,19.381,19.375,0.124578]
[1693580771730,108.39,19.387,19.375,0.124578]
[1693580772034,15.48,19.385,19.375,0.124578]
[1693580772218,108.39,19.387,19.375,0.124578]
[1693580773018,92.91,19.384,19.375,0.124578]
[1693580773220,15.48,19.382,19.375,0.124578]
[1693580773530,15.48,19.38,19.375,0.124578]
[1693580773728,92.91,19.384,19.379,0.758304]
[1693580773929,15.48,19.382,19.379,0.758304]
[1693580774128,92.91,19.384,19.379,0.758304]
[1693580774324,15.48,19.382,19.379,0.758304]
[1693580774531,92.91,19.384,19.379,0.758304]
[1693580774728,0.83125391,19.38,19.375,0.124578]
[1693580775033,0.83125391,19.38,19.371,0.18690439]
[1693580775034,16.31125391,19.38,19.371,0.18690439]
[1693580776631,0.83125391,19.38,19.371,0.18690439]
[1693580777730,0.83125391,19.38,19.369,92.91]
[1693580777929,0.83125391,19.38,19.37,21.79187272]
[1693580778130,0.83125391,19.38,19.371,0.22727272]
[1693580780629,92.91,19.378,19.371,0.22727272]
[1693580780824,9.49418699,19.377,19.36,92.91]
[1693580781133,9.49418699,19.377,19.371,0.12460371]
[1693580781331,113.9463,19.378,19.371,0.12460371]
[1693580781332,0.83125391,19.38,19.371,0.12460371]
[1693580781935,92.91,19.383,19.371,0.12460371]
[1693580782132,9.4924011,19.382,19.371,0.12460371]
[1693580782537,9.4924011,19.387,19.373,92.91]
[1693580782733,92.91,19.391,19.373,92.91]
[1693580783033,9.48922899,19.39,19.374,21.8073]
[1693580784630,9.48922899,19.39,19.376,92.91]
[1693580784835,9.48922899,19.39,19.377,0.22727272]
[1693580785035,0.71284743,19.384,19.377,22.03457272]
[1693580785340,0.71284743,19.384,19.378,0.22727272]
[1693580785543,0.71284743,19.384,19.379,0.22727272]
[1693580785741,0.71284743,19.384,19.38,0.22727272]
[1693580785942,0.71284743,19.384,19.381,0.22727272]
[1693580786143,41.62641898,19.398,19.381,0.22727272]
[1693580786144,64.56702335,19.398,19.382,0.22727272]
[1693580786337,9.48626795,19.397,19.382,0.22727272]
[1693580786642,9.48626795,19.396,19.384,92.91]
[1693580786839,9.48626795,19.395,19.385,0.22727272]
[1693580787039,92.91,19.403,19.385,0.22727272]
[1693580787238,30.59923563,19.402,19.385,0.22727272]
[1693580787442,9.48433563,19.401,19.385,0.22727272]
[1693580788347,9.48433563,19.401,19.387,92.91]
[1693580788533,9.48433563,19.401,19.388,0.22727272]
[1693580788739,9.48433563,19.401,19.391,0.81963771]
[1693580788938,9.48433563,19.4,19.392,0.22727272]
[1693580789241,9.48433563,19.399,19.392,0.22727272]
[1693580789439,9.48433563,19.398,19.392,0.22727272]
[1693580789644,9.48433563,19.397,19.392,0.22727272]
[1693580789844,9.48433563,19.403,19.392,0.22727272]
[1693580790043,9.48433563,19.402,19.392,0.22727272]
[1693580790249,9.48433563,19.401,19.388,0.22727272]
[1693580790547,92.91,19.405,19.388,0.22727272]
[1693580790548,9.48433563,19.4,19.388,0.22727272]
[1693580790750,9.48433563,19.399,19.388,0.22727272]
[1693580790948,9.48433563,19.398,19.388,0.22727272]
[1693580791244,19.9645,19.407,19.388,0.22727272]
[1693580791441,92.91,19.405,19.388,0.22727272]
[1693580792345,9.48237533,19.404,19.388,0.22727272]
[1693580792746,9.48237533,19.404,19.387,92.91]
[1693580793150,9.48237533,19.404,19.395,0.70432968]
[1693580797255,235.11237533,19.404,19.395,0.70432968]
[1693580797457,9.48237533,19.403,19.395,0.70432968]
[1693580798157,944.37662711,19.408,19.395,0.70432968]
[1693580798158,825.63,19.41,19.396,225.63]
[1693580798458,29.67846697,19.409,19.396,225.63]
[1693580798656,9.48026697,19.408,19.396,225.63]
[1693580799155,9.48026697,19.407,19.396,225.63]
[1693580799356,9.48026697,19.406,19.396,225.63]
[1693580799553,9.48026697,19.409,19.396,225.63]
[1693580799751,9.48026697,19.408,19.396,225.63]
[1693580799955,9.48026697,19.407,19.396,225.63]
[1693580800150,9.48026697,19.409,19.396,225.63]
[1693580800353,9.48026697,19.408,19.396,225.63]
[1693580800660,9.48026697,19.407,19.396,225.63]
[1693580800861,9.48026697,19.406,19.396,225.63]
[1693580801063,825.63,19.41,19.392,20.5984]
[1693580801064,9.48026697,19.405,19.393,225.63]
[1693580801267,9.48026697,19.404,19.393,225.63]
[1693580801467,9.48026697,19.403,19.393,225.63]
[1693580801656,9.48026697,19.406,19.393,225.63]
[1693580801857,225.63,19.404,19.392,20.5984]
[1693580802063,9.48026697,19.403,19.392,20.5984]
[1693580803269,9.48026697,19.403,19.391,225.63]
[1693580805570,9.48026697,19.403,19.393,225.63]
[1693580805870,9.48026697,19.402,19.393,225.63]
[1693580806169,9.48026697,19.401,19.393,225.63]
[1693580806371,9.48026697,19.4,19.397,225.63]
[1693580806666,21.3241,19.408,19.397,225.63]
[1693580806872,9.48243206,19.407,19.397,225.63]
[1693580807065,9.48243206,19.409,19.397,225.63]
[1693580807265,9.48243206,19.408,19.397,225.63]
[1693580807460,9.48243206,19.407,19.397,225.63]
[1693580807670,9.48243206,19.406,19.394,225.63]
[1693580807871,9.48243206,19.405,19.394,225.63]
[1693580808166,9.48243206,19.404,19.394,225.63]
[1693580808370,9.48243206,19.403,19.394,225.63]
[1693580808567,9.48243206,19.402,19.394,225.63]
[1693580808870,9.48243206,19.401,19.394,225.63]
[1693580809061,9.48243206,19.4,19.394,225.63]
[1693580809264,225.63,19.409,19.394,225.63]
[1693580809570,9.48271592,19.408,19.394,225.63]
[1693580809872,9.48271592,19.408,19.4,0.06220912]
[1693580813575,9.48271592,19.409,19.4,0.06220912]
[1693580813772,9.48271592,19.408,19.4,0.06220912]
[1693580813973,9.48271592,19.407,19.4,0.06220912]
[1693580814273,9.48271592,19.406,19.4,0.06220912]
[1693580814576,267.31247422,19.412,19.4,0.06220912]
[1693580814577,9.48271592,19.405,19.4,0.06220912]
[1693580814874,9.48271592,19.404,19.4,0.06220912]
[1693580815068,9.48271592,19.403,19.4,0.06220912]
[1693580815268,9.48271592,19.402,19.4,0.06220912]
[1693580815475,0.75201104,19.405,19.4,0.06220912]
[1693580815672,9.48128481,19.404,19.4,0.06220912]
[1693580821169,9.48128481,19.404,19.396,0.12444313]
[1693580821575,9.48128481,19.404,19.392,225.81670205]
[1693580821576,9.48128481,19.404,19.392,225.63]
[1693580821974,9.48128481,19.404,19.394,225.63]
[1693580822176,9.93583027,19.404,19.394,225.63]
[1693580822378,9.93583027,19.404,19.397,225.63]
[1693580822571,9.93583027,19.404,19.399,225.63]
[1693580823674,9.48128481,19.403,19.399,225.63]
[1693580823871,9.48128481,19.402,19.399,225.63]
[1693580824077,9.48128481,19.401,19.399,225.63]
[1693580824270,0.45454546,19.407,19.399,225.63]
[1693580824476,74.43913461,19.407,19.396,225.63]
[1693580824678,9.48237753,19.406,19.396,225.63]
[1693580826085,9.48237753,19.406,19.4,0.06220912]
[1693580827284,9.48237753,19.406,19.401,0.827011]
[1693580827680,0.78850221,19.405,19.401,0.827011]
[1693580829787,0.78850221,19.405,19.402,225.63]
[1693580832186,600.0,19.41,19.404,225.63]
[1693580832391,600.0,19.41,19.406,225.63]
[1693580832792,9.47885317,19.409,19.406,225.63]
[1693580833291,9.47885317,19.409,19.403,225.63]
[1693580834090,9.47885317,19.409,19.406,0.83153195]
[1693580846510,24.93885317,19.409,19.406,0.83153195]
[1693580846708,9.47885317,19.408,19.406,0.83153195]
[1693580847505,9.47885317,19.407,19.406,0.83153195]
[1693580847709,9.47885317,19.409,19.406,0.83153195]
[1693580849111,9.47885317,19.409,19.406,125.28153195]
[1693580850710,600.0,19.41,19.406,125.28153195]
[1693580851702,600.0,19.41,19.409,124.45]
[1693580851912,450.02167962,19.41,19.409,124.45]
[1693580852116,416.89247962,19.41,19.409,124.45]
[1693580852411,391.62437962,19.41,19.409,124.45]
[1693580852611,390.12637962,19.41,19.409,124.45]
[1693580852809,350.97357962,19.41,19.409,124.45]
[1693580853013,317.84447962,19.41,19.409,124.45]
[1693580853310,132.68757962,19.41,19.409,622.25]
[1693580855311,20.8017,19.421,19.409,899.34537838]
[1693580855512,20.8017,19.421,19.418,124.45]
[1693580855717,20.8017,19.421,19.42,124.45]
[1693580855915,124.45,19.432,19.42,124.45]
[1693580856215,22.0617,19.426,19.42,124.45]
[1693580857716,22.0617,19.426,19.421,0.80624097]
[1693580858115,22.0617,19.426,19.424,124.45]
[1693580858817,22.0617,19.426,19.421,0.80624097]
[1693580859023,22.0617,19.426,19.424,124.45]
[1693580859619,9.46922504,19.425,19.424,124.45]
[1693580860814,124.45,19.439,19.424,124.45]
[1693580861122,20.5531,19.431,19.427,124.45]
[1693580861326,20.5531,19.431,19.43,124.45]
[1693580861816,124.45,19.44,19.427,124.45]
[1693580862016,20.5322,19.43,19.424,124.45]
[1693580862214,20.5322,19.43,19.419,124.45]
[1693580862418,15.45,19.428,19.419,124.45]
[1693580862622,20.5322,19.43,19.419,124.45]
[1693580862920,15.45,19.428,19.419,124.45]
[1693580863225,9.46784845,19.427,19.419,124.45]
[1693580863423,20.5322,19.43,19.419,124.45]
[1693580863719,15.45,19.428,19.419,124.45]
[1693580864024,15.45,19.428,19.423,0.72445057]
[1693580864222,9.46865556,19.427,19.423,0.72445057]
[1693580864525,124.90454546,19.426,19.414,124.45]
[1693580864826,9.92396811,19.425,19.414,124.45]
[1693580865126,0.45454546,19.424,19.414,124.45]
[1693580865521,0.45454546,19.424,19.417,124.45]
[1693580866122,0.45454546,19.423,19.417,124.45]
[1693580866425,55.87842429,19.428,19.417,124.45]
[1693580866721,124.45,19.432,19.42,124.45]
[1693580866924,15.45,19.428,19.42,124.45]
[1693580867125,124.45,19.432,19.42,124.45]
[1693580867325,15.45,19.428,19.42,124.45]
[1693580867625,124.45,19.432,19.42,124.45]
[1693580867819,15.45,19.428,19.42,124.45]
[1693580868027,15.45,19.428,19.417,124.45]
[1693580868427,9.46899328,19.427,19.417,124.45]
[1693580870427,124.45,19.426,19.414,124.45]
[1693580870625,9.46899328,19.425,19.414,124.45]
[1693580871028,124.45,19.426,19.414,124.45]
[1693580871235,15.45,19.428,19.417,124.45]
[1693580871525,9.46873674,19.427,19.417,124.45]
[1693580872022,124.45,19.425,19.414,124.45]
[1693580872231,124.45,19.425,19.419,0.12429576]
[1693580872429,124.45,19.42,19.415,0.18648094]
[1693580872636,653.3,19.429,19.415,0.18648094]
[1693580872637,15.45,19.417,19.415,0.18648094]
[1693580873026,15.45,19.418,19.415,0.18648094]
[1693580874131,15.45,19.418,19.411,0.24869102]
[1693580874330,139.9,19.418,19.411,0.24869102]
[1693580874535,15.45,19.415,19.403,124.8231859]
[1693580874726,15.45,19.415,19.404,277.15761959]
[1693580875732,124.45,19.412,19.403,0.3731859]
[1693580880435,15.45,19.409,19.403,0.3731859]
[1693580880633,15.45,19.409,19.397,124.45]
[1693580880833,15.45,19.407,19.398,277.21820495]
[1693580882032,15.45,19.407,19.4,124.45]
[1693580883631,15.45,19.407,19.397,124.45]
[1693580883828,15.45,19.407,19.398,277.26122455]
[1693580887244,15.45,19.407,19.403,0.12439815]
[1693580887434,21.9311,19.408,19.403,0.12439815]
[1693580888842,15.46,19.407,19.403,0.12439815]
[1693580889538,21.9311,19.408,19.403,0.12439815]
[1693580890943,21.9311,19.408,19.404,124.45]
[1693580891138,21.9311,19.408,19.405,277.25408181]
[1693580891437,15.46,19.415,19.405,277.25408181]
[1693580891639,21.7669,19.414,19.405,277.25408181]
[1693580891837,21.7669,19.414,19.403,0.12439815]
[1693580891838,124.45,19.412,19.403,0.12439815]
[1693580892037,148.72175913,19.412,19.403,0.12439815]
[1693580894142,0.77107484,19.409,19.403,0.12439815]
[1693580895441,0.77107484,19.409,19.401,277.17981034]
[1693580895636,0.77107484,19.409,19.406,124.45]
[1693580896035,0.58464363,19.409,19.408,124.45]
[1693580896738,0.58464363,19.409,19.406,124.45]
[1693580897840,0.58464363,19.409,19.407,277.09650205]
[1693580898739,0.58464363,19.409,19.408,124.45]
[1693580898934,0.58464363,19.409,19.408,401.49802757]
[1693580899142,21.7669,19.414,19.408,401.49802757]
[1693580899439,21.7669,19.414,19.409,277.04802757]
[1693580902843,21.7669,19.414,19.408,124.45]
[1693580904541,21.7669,19.414,19.409,277.05017606]
[1693580905343,21.7669,19.414,19.412,124.45]
[1693580906041,0.45454546,19.423,19.412,124.45]
[1693580906242,20.1952,19.422,19.412,124.45]
[1693580906842,20.1952,19.422,19.407,0.06218662]
[1693580907047,20.1952,19.422,19.414,124.45]
[1693580908953,20.1952,19.422,19.417,124.45]
[1693580912049,20.1952,19.422,19.418,124.45]
[1693580917351,20.1952,19.422,19.419,276.90358718]
[1693580918555,20.1952,19.422,19.421,124.45]
[1693580919058,41.42048377,19.431,19.421,124.45]
[1693580919357,20.7367,19.43,19.421,124.45]
[1693580919653,0.45454546,19.432,19.424,124.45]
[1693580919858,0.45454546,19.434,19.431,124.45]
[1693580920154,20.7367,19.442,19.434,124.45]
[1693580920360,20.7367,19.442,19.44,124.45]
[1693580921346,20.7367,19.442,19.441,124.45]
[1693580921753,15.45,19.451,19.441,124.45]
[1693580921950,15.45,19.451,19.447,124.45]
[1693580922154,15.45,19.451,19.441,124.45]
[1693580922461,15.45,19.451,19.44,227.35]
[1693580922849,15.45,19.451,19.446,227.35]
[1693580924261,15.45,19.451,19.445,227.35]
[1693580925055,20.4701,19.452,19.445,227.35]
[1693580925261,20.4701,19.452,19.449,227.35]
[1693580926152,20.92464546,19.452,19.449,227.35]
[1693580926461,15.45,19.451,19.449,227.35]
[1693580926653,15.45,19.451,19.446,227.35]
[1693580926854,15.45,19.451,19.443,227.35]
[1693580928463,15.45,19.451,19.445,0.70178972]
[1693580929052,20.4701,19.452,19.45,227.35]
[1693580932057,20.4701,19.452,19.45,1136.75]
[1693580933759,15.45,19.464,19.45,1136.75]
[1693580933957,15.45,19.461,19.457,227.35]
[1693580935457,15.45,19.461,19.459,227.35]
[1693580935658,21.6492,19.462,19.459,227.35]
[1693580935863,9.45324743,19.461,19.459,227.35]
[1693580937162,24.90324743,19.461,19.459,227.35]
[1693580937365,21.6492,19.462,19.459,227.35]
[1693580937564,9.45298639,19.461,19.459,227.35]
[1693580940066,21.6492,19.462,19.459,227.35]
[1693580940271,21.6492,19.462,19.458,228.11948093]
[1693580940272,21.6492,19.462,19.461,227.35]
[1693580941771,0.45454546,19.463,19.461,227.35]
[1693580946176,9.44933315,19.47,19.461,227.35]
[1693580946379,9.44933315,19.47,19.458,910.16948093]
[1693580946574,9.44933315,19.47,19.469,227.35]
[1693580949680,20.1812,19.472,19.469,227.35]
[1693580949877,20.1812,19.472,19.471,227.35]
[1693580950275,0.22727272,19.486,19.471,227.35]
[1693580950472,30.16342856,19.486,19.477,227.35]
[1693580950680,9.44655584,19.485,19.477,227.35]
[1693580951883,9.44655584,19.485,19.48,227.35]
[1693580952073,9.44655584,19.485,19.484,227.35]
[1693580952675,15.41,19.492,19.484,227.35]
[1693580952881,9.44059517,19.491,19.489,227.35]
[1693580953389,55.95620122,19.492,19.489,227.35]
[1693580953575,20.4896,19.493,19.491,227.35]
[1693580954281,20.4896,19.493,19.491,454.7]
[1693580954481,20.4896,19.493,19.491,1136.75]
[1693580956382,500.0,19.509,19.491,1136.75]
[1693580956583,9.43767563,19.508,19.5,227.35]
[1693580956784,9.43767563,19.507,19.503,227.35]
[1693580956985,9.43767563,19.506,19.503,227.35]
[1693580957185,15.41,19.512,19.503,227.35]
[1693580957381,15.41,19.51,19.503,227.35]
[1693580957580,9.43767563,19.509,19.503,227.35]
[1693580957781,9.66494835,19.515,19.503,227.35]
[1693580957984,35.28756835,19.514,19.503,227.35]
[1693580958285,15.41,19.512,19.503,227.35]
[1693580958475,15.41,19.51,19.506,0.79937262]
[1693580958680,25.84989272,19.514,19.506,0.79937262]
[1693580958681,9.43767563,19.509,19.506,0.79937262]
[1693580958985,40.74294509,19.515,19.508,227.35]
[1693580959188,9.43448341,19.514,19.512,227.35]
[1693580959485,9.43448341,19.517,19.512,227.35]
[1693580959681,500.0,19.519,19.512,227.35]
[1693580959682,15.41,19.513,19.512,227.35]
[1693580960089,24.84448341,19.513,19.512,227.35]
[1693580960389,71.31212612,19.55,19.512,227.35]
[1693580960390,15.41,19.528,19.516,909.4]
[1693580960683,15.41,19.526,19.524,227.35]
[1693580960889,9.43118159,19.525,19.524,227.35]
[1693580961081,15.41,19.526,19.524,227.35]
[1693580961384,9.43118159,19.525,19.524,227.35]
[1693580961581,20.8093,19.526,19.524,227.35]
[1693580961785,20.8093,19.526,19.525,227.35]
[1693580961983,9.42581449,19.526,19.525,227.35]
[1693580962388,9.42581449,19.526,19.508,0.45454546]
[1693580962683,15.41,19.528,19.519,227.35]
[1693580962684,9.42581449,19.525,19.519,227.35]